lending/lending_fUSD_20260328
["ID","MTS","AMOUNT","RATE_DAILY","PERIOD"]
[418967433,1774685268862,2480.0,0.00011502,2]
[418967434,1774685269393,2319.49518023,0.00011535,2]
[418967435,1774685269438,110.50481977,0.00011535,2]
[418967436,1774685269935,1110.0,0.00011713,2]
[418967437,1774685270459,2940.18,0.00011792,2]
[418967438,1774685271000,839.32518023,0.00012039,2]
[418967445,1774685324279,205.0,9.8e-05,2]
[418967446,1774685340430,427.47,0.00011233,2]
[418967449,1774685408764,4367.54,9.5e-05,3]
[418967450,1774685408808,5000.01,9.5e-05,3]
[418967451,1774685408851,5000.01,9.5e-05,3]
[418967452,1774685416174,-1881.53157569,9.5e-05,3]
[418967453,1774685416341,-5000.01,9.5e-05,3]
[418967454,1774685416490,-5000.01,9.5e-05,3]
[418967455,1774685416657,-5000.01,9.5e-05,3]
[418967456,1774685416803,-5000.01,9.5e-05,3]
[418967457,1774685416934,-5000.01,9.5e-05,3]
[418967458,1774685419074,-5000.01,9.5e-05,3]
[418967459,1774685419208,-5000.01,9.5e-05,3]
[418967460,1774685419353,-5000.01,9.5e-05,3]
[418967461,1774685419514,-5000.01,9.5e-05,3]
[418967462,1774685419679,-5000.01,9.5e-05,3]
[418967463,1774685419834,-5000.01,9.5e-05,3]
[418967464,1774685420009,-5000.01,9.5e-05,3]
[418967475,1774685432183,-832.28,9.5e-05,3]
[418967476,1774685432194,-2491.83919721,9.5e-05,3]
[418967477,1774685432206,-609.8984744,9.5e-05,3]
[418967478,1774685432222,-750.0,9.5e-05,3]
[418967479,1774685432253,-970.31793558,9.5e-05,3]
[418967480,1774685432375,-75170.19231086,9.5e-05,3]
[418967481,1774685432385,-294.0,0.00012039,2]
[418967482,1774685432394,-1572.44481977,0.00012039,2]
[418967483,1774685432403,-614.65088727,0.00012052,2]
[418967484,1774685432412,-2400.0,0.00012065,2]
[418967485,1774685432421,-1900.0,0.00012173,2]
[418967486,1774685432430,-1883.5,0.00012213,2]
[418967487,1774685432439,-232.0,0.00012312,2]
[418967488,1774685432448,-300.0,0.00012312,2]
[418967489,1774685432457,-300.0,0.00012312,2]
[418967490,1774685432467,-1200.0,0.00012312,2]
[418967491,1774685432476,-2530.0,0.00012313,2]
[418967492,1774685432485,-1600.0,0.00012458,2]
[418967493,1774685432494,-2240.0,0.00012558,2]
[418967494,1774685432503,-1685.23,0.0001262,2]
[418967496,1774685432512,-2571.01753945,0.00012635,2]
[418967498,1774685432522,-169.0,0.00012635,3]
[418967500,1774685432530,-381.29235684,0.00012832,2]
[418967502,1774685432539,-1080.0,0.0001289,2]
[418967504,1774685432549,-873.3,0.00012932,2]
[418967506,1774685432558,-151.1345173,0.00012939,2]
[418967507,1774685432567,-1900.0,0.00012951,2]
[418967509,1774685432576,-3200.0,0.00012966,2]
[418967511,1774685432585,-226.51347201,0.00012973,2]
[418967513,1774685432594,-503.38413712,0.00012973,2]
[418967515,1774685432603,-1000.0,0.00013035,2]
[418967516,1774685432612,-1820.0,0.00013076,2]
[418967517,1774685432621,-540.0,0.00013111,2]
[418967518,1774685432630,-523.0,0.00013111,2]
[418967519,1774685432639,-150.0,0.00013143,2]
[418967520,1774685432648,-5912.63,0.00013144,2]
[418967521,1774685432656,-101880.4,0.00013144,2]
[418967522,1774685432665,-500.0,0.00013173,2]
[418967523,1774685432674,-500.0,0.00013173,2]
[418967524,1774685432683,-164.24,0.0001319,2]
[418967525,1774685432692,-150.0,0.000132,2]
[418967526,1774685432701,-900.0,0.00013205,2]
[418967527,1774685432710,-409.7,0.00013224,2]
[418967528,1774685432719,-5000.0,0.00013243,2]
[418967529,1774685432728,-5000.0,0.00013243,2]
[418967530,1774685432737,-3220.02,0.0001336,2]
[418967531,1774685432747,-640.0,0.00013376,2]
[418967532,1774685432756,-1200.0,0.00013414,2]
[418967533,1774685432766,-1000.0,0.00013445,2]
[418967534,1774685432776,-2500.0,0.00013495,2]
[418967535,1774685432784,-1680.0,0.00013543,2]
[418967536,1774685432793,-996.0,0.00013547,2]
[418967537,1774685432802,-495.67176904,0.00013571,2]
[418967538,1774685432811,-2500.0,0.0001358,2]
[418967539,1774685432820,-183.34503366,0.0001358,2]
[418967540,1774685432829,-1539.79806719,0.0001358,2]
[418967541,1774685432838,-500.0,0.0001358,2]
[418967542,1774685432847,-1471.15310345,0.0001358,2]
[418967543,1774685432855,-900.0,0.000136,4]
[418967544,1774685432864,-166.66,0.0001363,2]
[418967545,1774685432873,-1200.0,0.00013641,2]
[418967546,1774685432882,-3656.3021,0.00013671,2]
[418967547,1774685432891,-500.0,0.00013673,2]
[418967548,1774685432900,-359401.00109868,0.0001368,2]
[418967549,1774685432919,-266.38014877,0.0001368,2]
[418967553,1774685438374,-1620.0,0.0001368,2]
[418967554,1774685438386,-1277.27139037,0.0001368,2]
[418967617,1774685440526,-250.0,0.000104,5]
[418967618,1774685440536,-159.61,0.00013038,2]
[418967619,1774685440546,-3241.39681696,0.0001368,2]
[418967620,1774685440624,-380211.59069051,0.0001368,2]
[418967621,1774685440926,-77595.84488391,0.0001368,2]
[418967622,1774685440937,-28904.19306324,0.0001368,2]
[418967623,1774685440948,-6653.03943673,0.0001368,2]
[418967624,1774685441031,-963.8186245,0.0001368,2]
[418967625,1774685441050,-1425.82817633,0.0001368,2]
[418967635,1774685443714,-541.39864331,0.0001368,2]
[418967636,1774685444097,-2606.705,0.0001368,2]
[418967637,1774685444108,-37348.07253394,0.0001368,2]
[418967638,1774685444171,-371.99360738,0.0001368,2]
[418967649,1774685446330,-5865.61362237,0.0001368,2]
[418967650,1774685446821,-5160.22611842,0.0001368,2]
[418967655,1774685468029,5000.01,7.945e-05,2]
[418967656,1774685468132,1949.33992,7.945e-05,2]
[418967657,1774685526846,158.0,7.945e-05,3]
[418967658,1774685529264,160.0,7.945e-05,3]
[418967659,1774685535466,426.58,7.687e-05,2]
[418967660,1774685586609,158.0,7.687e-05,3]
[418967661,1774685588625,161.0,7.687e-05,3]
[418967662,1774685621596,154.0,6.441e-05,2]
[418967663,1774685621827,154.0,6.441e-05,2]
[418967664,1774685622069,154.0,6.441e-05,2]
[418967665,1774685622303,154.0,6.441e-05,2]
[418967666,1774685622504,154.0,6.441e-05,2]
[418967667,1774685622767,154.0,6.441e-05,2]
[418967668,1774685622999,154.0,6.441e-05,2]
[418967669,1774685623228,154.0,6.441e-05,2]
[418967670,1774685623507,154.0,6.441e-05,2]
[418967671,1774685623700,154.0,6.441e-05,2]
[418967672,1774685623965,154.0,6.441e-05,2]
[418967673,1774685624173,154.0,6.441e-05,2]
[418967674,1774685624413,154.0,6.441e-05,2]
[418967675,1774685624609,154.0,6.441e-05,2]
[418967676,1774685624848,154.0,6.441e-05,2]
[418967677,1774685625053,154.0,6.441e-05,2]
[418967678,1774685625272,154.0,6.441e-05,2]
[418967679,1774685625481,6.09008,6.441e-05,2]
[418967680,1774685625527,147.90992,6.441e-05,2]
[418967681,1774685625715,154.0,6.441e-05,2]
[418967682,1774685625939,154.0,6.441e-05,2]
[418967683,1774685626197,154.0,6.441e-05,2]
[418967684,1774685626467,154.0,6.441e-05,2]
[418967685,1774685626711,154.0,6.441e-05,2]
[418967686,1774685626948,154.0,6.441e-05,2]
[418967687,1774685627164,154.0,6.441e-05,2]
[418967688,1774685627399,154.0,6.441e-05,2]
[418967689,1774685627633,154.0,6.441e-05,2]
[418967690,1774685627849,154.0,6.441e-05,2]
[418967691,1774685628068,154.0,6.441e-05,2]
[418967692,1774685628319,154.0,6.441e-05,2]
[418967693,1774685628532,154.0,6.441e-05,2]
[418967694,1774685629064,154.0,6.441e-05,2]
[418967695,1774685629304,154.0,6.441e-05,2]
[418967696,1774685646988,158.0,6.441e-05,3]
[418967697,1774685705251,166.0,6.441e-05,3]
[418967698,1774685705662,158.0,6.441e-05,3]
[418967699,1774685721490,1000.0,6.033e-05,2]
[418967700,1774685722000,926.36,6.662e-05,2]
[418967701,1774685722522,859.57,7.244e-05,2]
[418967702,1774685770412,158.0,6.441e-05,3]
[418967705,1774685907281,436.64,6.116e-05,2]
[418967706,1774685996139,-166.0,9.034e-05,3]
[418967707,1774685996187,-208.76258561,9.26e-05,2]
[418967708,1774685996240,-250.0,9.26e-05,2]
[418967709,1774685996291,-3750.48482878,9.486e-05,2]
[418967710,1774685996464,-1179.40096764,9.486e-05,2]
[418967711,1774685996515,-70.11420358,9.486e-05,2]
[418967712,1774685996562,-169.16,9.529e-05,2]
[418967713,1774685996611,-300.0,9.937e-05,2]
[418967714,1774685996660,-343.29686296,9.938e-05,2]
[418967715,1774685996707,-3234.86786692,9.938e-05,2]
[418967716,1774685996914,-1765.13213308,9.938e-05,2]
[418967723,1774685998954,-5000.0,9.938e-05,2]
[418967724,1774685999041,-0.01,9.938e-05,2]
[418967725,1774686001970,-249.99,9.938e-05,2]
[418967726,1774686002021,-183.27834331,9.938e-05,2]
[418967727,1774686002069,-250.40711972,0.00010271,2]
[418967728,1774686002116,-169.16,0.0001072,2]
[418967729,1774686002167,-150.0,0.000115,2]
[418967730,1774686002216,-166.66,0.00011594,2]
[418967731,1774686002265,-166.0,0.00011627,3]
[418967732,1774686002321,-166.66,0.00011838,2]
[418967733,1774686002373,-169.16,0.00011911,2]
[418967734,1774686002425,-166.66,0.00012082,2]
[418967735,1774686002476,-166.66,0.00012326,2]
[418967736,1774686002718,193.0,0.00010931,2]
[418967737,1774686002883,4635.64,0.00011982,2]
[418967738,1774686029924,175.63,5.906e-05,2]
[418967739,1774686154193,1000.0,5.589e-05,2]
[418967740,1774686154708,608.03,6.023e-05,2]
[418967741,1774686155241,743.81,6.568e-05,2]
[418967742,1774686278015,-166.0,0.00012392,2]
[418967743,1774686278064,-166.0,0.00012392,2]
[418967744,1774686278112,-195.0,0.00012463,2]
[418967745,1774686278161,-196.43472492,0.00012521,2]
[418967746,1774686278209,-500.0,0.00012535,2]
[418967747,1774686278259,-302.0,0.00012535,2]
[418967748,1774686278308,-166.66,0.0001257,2]
[418967749,1774686278359,-1200.0,0.00012572,2]
[418967750,1774686278410,-1200.0,0.00012679,2]
[418967751,1774686278729,-3144.16,0.0001268,2]
[418967752,1774686278776,-151.0,0.00012803,2]
[418967753,1774686278823,-151.0,0.00012803,2]
[418967754,1774686278869,-157.08,0.00012803,2]
[418967755,1774686278920,-493.53,0.00012812,2]
[418967756,1774686280929,-1806.47,0.00012812,2]
[418967757,1774686280980,-300.0,0.00012813,2]
[418967758,1774686281033,-300.0,0.00012813,2]
[418967759,1774686281085,-166.66,0.00012814,2]
[418967760,1774686281138,-2353.75,0.00012857,2]
[418967761,1774686283805,-146.25,0.00012857,2]
[418967762,1774686283916,-8516.07,0.00012874,2]
[418967763,1774686307399,168.0,6.441e-05,3]
[418967764,1774686338880,870.96,6.193e-05,2]
[418967765,1774686408802,1050.0,5.777e-05,2]
[418967766,1774686409314,987.83,5.85e-05,2]
[418967767,1774686409841,1500.0,5.963e-05,2]
[418967768,1774686410537,591.22,5.983e-05,2]
[418967769,1774686410585,1897.6,5.983e-05,2]
[418967770,1774686410900,900.0,6.088e-05,2]
[418967771,1774686411443,2200.0,6.07e-05,2]
[418967772,1774686411974,2050.44,6.157e-05,2]
[418967773,1774686412500,2260.0,6.257e-05,2]
[418967774,1774686413014,689.57,6.278e-05,2]
[418967775,1774686413058,1210.43,6.278e-05,2]
[418967776,1774686413551,1000.0,6.342e-05,2]
[418967777,1774686414070,2170.0,6.345e-05,2]
[418967778,1774686414591,453.98,6.5e-05,2]
[418967779,1774686414641,680.1,6.5e-05,2]
[418967780,1774686415409,1100.0,6.524e-05,2]
[418967781,1774686417881,1270.0,6.589e-05,2]
[418967782,1774686418430,2800.0,6.683e-05,2]
[418967783,1774686418958,930.01,6.645e-05,2]
[418967784,1774686419003,1169.99,6.645e-05,2]
[418967785,1774686419475,1870.0,6.738e-05,2]
[418967786,1774686419992,1900.0,6.778e-05,2]
[418967787,1774686420540,800.0,6.795e-05,2]
[418967788,1774686421066,1705.82,6.868e-05,2]
[418967789,1774686482904,331.87,6.645e-05,2]
[418967791,1774686611263,169.0,6.441e-05,3]
[418967792,1774686631806,-366.28,0.00011507,2]
[418967793,1774686631819,-284.0,0.00011507,2]
[418967794,1774686631829,-195.0,0.00012658,2]
[418967795,1774686631838,-563.80060104,0.00012687,2]
[418967796,1774686631848,-1447.48,0.000127,2]
[418967797,1774686631857,-1200.0,0.00012873,2]
[418967798,1774686631867,-1005.48004001,0.00012874,2]
[418967803,1774686637794,-322.65280366,0.00012874,2]
[418967804,1774686637805,-745.46632711,0.00012874,2]
[418968023,1774686640083,-770.33082922,0.00012874,2]
[418968025,1774686640092,-3415.05799834,0.00012874,2]
[418968029,1774686640114,-2230.47625356,0.00012874,2]
[418968045,1774686643028,-727.9181764,0.00012874,2]
[418968052,1774686645844,-257.80686361,0.00012874,2]
[418968053,1774686645933,-951.1931,0.00012874,2]
[418968075,1774686845226,-500.0,0.00012539,3]
[418968076,1774686845278,-327.09,0.00012614,2]
[418968077,1774686845330,-1004.05760809,0.00012874,2]
[418968078,1774686845381,-250.0,0.00012878,2]
[418968079,1774686845444,-1870.99852068,0.00012882,2]
[418968080,1774686845501,-250.0,0.00012926,2]
[418968081,1774686845926,-1011.10724489,0.00013011,2]
[418968082,1774686845980,-988.89275511,0.00013011,2]
[418968083,1774686846030,-300.0,0.00013044,2]
[418968084,1774686846080,-300.0,0.00013045,2]
[418968085,1774686846129,-963.0,0.00013045,2]
[418968086,1774686846365,-4896.22448978,0.00013046,2]
[418968087,1774686846424,-3949.62551022,0.00013046,2]
[418968088,1774686846476,-169.16,0.00013103,2]
[418968089,1774686846527,-532.0,0.00013111,2]
[418968090,1774686846580,-300.04128,0.00013129,2]
[418968091,1774686846739,-1500.0,0.00013154,2]
[418968092,1774686846790,-260.09,0.00013154,2]
[418968093,1774686846842,-1441.67,0.00013154,2]
[418968094,1774686846894,-151.0,0.00013155,2]
[418968095,1774686846945,-566.04,0.00013184,2]
[418968096,1774686846997,-568.25,0.00013184,2]
[418968097,1774686847510,-4221.438,0.00013525,2]
[418968098,1774686847564,-265.326,0.00013525,2]
[418968099,1774686847617,-150.0,0.00013525,2]
[418968100,1774686848001,-2007.6005,0.00013526,2]
[418968101,1774686848054,-2500.0,0.00013526,2]
[418968102,1774686848105,-157.15288602,0.00013571,2]
[418968103,1774686848443,-1385.81826048,0.00013571,2]
[418968104,1774686848454,-309.98727306,0.00013571,2]
[418968105,1774686848496,-136.11731913,0.00013571,2]
[418968106,1774686848506,-21.03556689,0.00013625,2]
[418968107,1774686848548,-478.96443311,0.00013625,2]
[418968108,1774686848558,-191.53879485,0.00013625,2]
[418968109,1774686850834,-308.46120515,0.00013625,2]
[418968110,1774686850893,-450.04067361,0.00013625,2]
[418968111,1774686850944,-500.0,0.00013625,2]
[418968112,1774686850994,-275.47661157,0.00013625,2]
[418968113,1774686851052,-623.44141343,0.00013625,2]
[418968114,1774686851102,-1568.0,0.00013626,5]
[418968115,1774686855203,245.30749081,0.00012778,2]
[418968116,1774686886979,184.6297,0.00012774,2]
[418968117,1774686935697,500.0,0.00013625,2]
[418968118,1774686935990,264.20923565,0.00013625,2]
[418968119,1774686965340,151.29,0.00013155,2]
[418968120,1774686971997,498.32,0.00012504,2]
[418968121,1774686987018,238.04943157,0.00013625,2]
[418968122,1774687048101,217.94,0.00012985,2]
[418968123,1774687060087,249.42433445,0.00013224,2]
[418968124,1774687060132,824.75493859,0.00013224,2]
[418968125,1774687064951,154.37,0.00012539,2]
[418968126,1774687065147,154.37,0.00013323,2]
[418968127,1774687069983,8866.51506141,0.00013626,2]
[418968128,1774687070033,10000.01,0.00013626,2]
[418968129,1774687070083,10000.01,0.00013626,2]
[418968130,1774687070129,10000.01,0.00013626,2]
[418968131,1774687070176,10000.01,0.00013626,2]
[418968132,1774687070222,10000.01,0.00013626,2]
[418968133,1774687070268,10000.01,0.00013626,2]
[418968134,1774687070316,10000.01,0.00013626,2]
[418968135,1774687070364,10000.01,0.00013626,2]
[418968136,1774687070410,10000.01,0.00013626,2]
[418968137,1774687070456,10000.01,0.00013626,2]
[418968138,1774687070502,10000.01,0.00013626,2]
[418968139,1774687089367,-300.0,0.00013625,2]
[418968140,1774687092860,-6850.83980752,0.00013626,2]
[418968141,1774687093141,-10000.01,0.00013626,2]
[418968142,1774687093439,-10000.01,0.00013626,2]
[418968143,1774687093607,-10000.01,0.00013626,2]
[418968144,1774687093768,-10000.01,0.00013626,2]
[418968145,1774687093922,-10000.01,0.00013626,2]
[418968146,1774687095116,-475.8,0.00013259,2]
[418968147,1774687095219,-9048.41,0.00013626,2]
[418968148,1774687095279,-10000.01,0.00013626,2]
[418968149,1774687095447,-10000.01,0.00013626,2]
[418968150,1774687104379,-10000.01,0.00013626,2]
[418968151,1774687104542,-10000.01,0.00013626,2]
[418968152,1774687104734,-10000.01,0.00013626,2]
[418968153,1774687104946,-10000.01,0.00013626,2]
[418968154,1774687110558,-10000.01,0.00013626,2]
[418968155,1774687126593,-1247.23643445,0.00013571,2]
[418968156,1774687126691,-7505.5371311,0.00013626,2]
[418968157,1774687126750,-10000.01,0.00013626,2]
[418968158,1774687126898,-10000.01,0.00013626,2]
[418968159,1774687127063,-10000.01,0.00013626,2]
[418968160,1774687140515,-10000.01,0.00013626,2]
[418968161,1774687170819,-532.0,0.00013111,2]
[418968162,1774687170876,-1541.88,0.00013201,2]
[418968163,1774687170929,-151.0,0.00013548,2]
[418968164,1774687170980,-151.0,0.00013561,2]
[418968165,1774687171033,-300.0,0.00013625,2]
[418968166,1774687171085,-300.0,0.00013625,2]
[418968167,1774687171140,-150.0,0.00013625,2]
[418968168,1774687171191,-300.0,0.00013625,2]
[418968169,1774687171588,-3148.25,0.00013626,2]
[418968170,1774687171634,-10000.01,0.00013626,2]
[418968171,1774687171675,-10000.01,0.00013626,2]
[418968172,1774687180702,-10000.01,0.00013626,2]
[418968173,1774687180830,-10000.01,0.00013626,2]
[418968174,1774687183931,-10000.01,0.00013626,2]
[418968175,1774687186972,-10000.01,0.00013626,2]
[418968176,1774687187106,-10000.01,0.00013626,2]
[418968177,1774687190299,-500.0,0.00013625,2]
[418968178,1774687190392,-9000.01,0.00013626,2]
[418968179,1774687190580,-10000.01,0.00013626,2]
[418968180,1774687190754,-1287.25896551,0.00013571,2]
[418968181,1774687190847,-7425.49206898,0.00013626,2]
[418968182,1774687190910,-10000.01,0.00013626,2]
[418968183,1774687191060,-10000.01,0.00013626,2]
[418968184,1774687197055,-10000.01,0.00013626,2]
[418968185,1774687197213,-10000.01,0.00013626,2]
[418968186,1774687197356,-10000.01,0.00013626,2]
[418968187,1774687200381,-10000.01,0.00013626,2]
[418968188,1774687203160,-300.0,0.00013625,2]
[418968189,1774687203212,-1200.0,0.00013625,2]
[418968190,1774687203567,-7000.01,0.00013626,2]
[418968191,1774687203618,-10000.01,0.00013626,2]
[418968193,1774687222505,-322.0,0.00013626,2]
[418968194,1774687222601,-9356.01,0.00013626,2]
[418968195,1774687222885,-10000.01,0.00013626,2]
[418968197,1774687477012,-4305.78,0.00012906,2]
[418968198,1774687538675,500.0,0.0001273,2]
[418968199,1774687580460,721.9,0.0001273,2]
[418968201,1774687612017,166.55,0.00012745,2]
[418968202,1774687612066,3492.23,0.00012745,2]
[418968203,1774687676195,1054.59,6.349e-05,2]
[418968204,1774687676384,1054.59,6.684e-05,2]
[418968205,1774687676579,1054.59,7.018e-05,2]
[418968206,1774687676789,1054.59,7.352e-05,2]
[418968207,1774687676956,1054.59,7.686e-05,2]
[418968208,1774687677154,1054.59,8.02e-05,2]
[418968209,1774687677343,180.24,8.354e-05,2]
[418968210,1774687677389,874.35,8.354e-05,2]
[418968211,1774687677533,1054.59,8.688e-05,2]
[418968212,1774687677732,1054.59,9.023e-05,2]
[418968213,1774687677918,1054.59,9.357e-05,2]
[418968214,1774687678115,1054.59,9.691e-05,2]
[418968215,1774687678329,1054.59,0.00010025,2]
[418968216,1774687678523,1054.59,0.00010359,2]
[418968217,1774687678711,1054.59,0.00010693,2]
[418968218,1774687678909,1054.59,0.00011028,2]
[418968219,1774687679322,688.94,0.00011362,2]
[418968220,1774687679371,365.65,0.00011362,2]
[418968221,1774687679510,1054.59,0.00011696,2]
[418968222,1774687679706,1054.59,0.0001203,2]
[418968223,1774687679893,1054.59,0.00012364,2]
[418968224,1774687680089,1054.59,0.00012698,2]
[418968226,1774687831713,-312.0,0.00013055,2]
[418968227,1774687831723,-225.33799408,0.00013055,2]
[418968228,1774687831767,-410.55372032,0.00013055,2]
[418968229,1774687831824,-1121.2182856,0.00013055,2]
[418968230,1774687831833,-250.0,0.00013083,2]
[418968231,1774687831844,-532.0,0.00013111,2]
[418968232,1774687831853,-230.61849266,0.0001315,2]
[418968233,1774687831863,-364.87079297,0.0001315,2]
[418968234,1774687831876,-135.12920703,0.0001315,2]
[418968235,1774687831887,-166.67,0.0001315,2]
[418968236,1774687831896,-300.0,0.00013349,2]
[418968237,1774687831906,-150.0,0.00013349,2]
[418968238,1774687831915,-1200.0,0.00013349,2]
[418968239,1774687831924,-500.0,0.00013349,2]
[418968240,1774687831934,-500.0,0.00013349,2]
[418968241,1774687831943,-500.0,0.00013349,2]
[418968242,1774687831953,-500.0,0.00013349,2]
[418968243,1774687831963,-500.0,0.00013349,2]
[418968244,1774687831974,-500.0,0.00013349,2]
[418968245,1774687831984,-500.0,0.00013349,2]
[418968246,1774687831993,-500.0,0.00013349,2]
[418968247,1774687832003,-500.0,0.00013349,2]
[418968248,1774687832013,-500.0,0.00013349,2]
[418968249,1774687832022,-500.0,0.00013349,2]
[418968250,1774687832032,-462.65282226,0.00013349,2]
[418968251,1774687832041,-500.0,0.0001335,2]
[418968252,1774687832051,-500.0,0.0001335,2]
[418968253,1774687832060,-500.0,0.0001335,2]
[418968254,1774687832070,-500.0,0.0001335,2]
[418968255,1774687832079,-500.0,0.0001335,2]
[418968256,1774687832088,-500.0,0.0001335,2]
[418968257,1774687832097,-500.0,0.0001335,2]
[418968258,1774687832106,-500.0,0.0001335,2]
[418968259,1774687832115,-500.0,0.0001335,2]
[418968260,1774687832125,-525.04461227,0.0001335,2]
[418968262,1774687832134,-1181.0,0.0001335,2]
[418968263,1774687832144,-1181.0,0.0001335,2]
[418968264,1774687832154,-1181.0,0.0001335,2]
[418968266,1774687832164,-1181.0,0.0001335,2]
[418968268,1774687832174,-1181.0,0.0001335,2]
[418968269,1774687832184,-1181.0,0.0001335,2]
[418968271,1774687832194,-1181.0,0.0001335,2]
[418968274,1774687832204,-1181.0,0.0001335,2]
[418968276,1774687832214,-1181.0,0.0001335,2]
[418968278,1774687832224,-1181.0,0.0001335,2]
[418968280,1774687832234,-1181.0,0.0001335,2]
[418968281,1774687832243,-1181.0,0.0001335,2]
[418968282,1774687832253,-1181.0,0.0001335,2]
[418968283,1774687832263,-1181.0,0.0001335,2]
[418968284,1774687832273,-1181.0,0.0001335,2]
[418968285,1774687832282,-1181.0,0.0001335,2]
[418968286,1774687832292,-1181.0,0.0001335,2]
[418968287,1774687832301,-1181.0,0.0001335,2]
[418968288,1774687832310,-1181.0,0.0001335,2]
[418968289,1774687832319,-1181.0,0.0001335,2]
[418968290,1774687832329,-1181.0,0.0001335,2]
[418968291,1774687832339,-1181.0,0.0001335,2]
[418968292,1774687832348,-1181.0,0.0001335,2]
[418968293,1774687832357,-1191.0,0.0001335,2]
[418968294,1774687832367,-178.51,0.00013472,2]
[418968295,1774687832378,-457.19677202,0.00013521,2]
[418968296,1774687832387,-4147.505,0.00013525,2]
[418968297,1774687832397,-2209.74449845,0.00013525,2]
[418968298,1774687832421,-443.5120398,0.00013525,2]
[418968299,1774687832433,-414.71868,0.00013525,2]
[418968300,1774687832446,-2012.78354579,0.00013525,2]
[418968301,1774687832457,-299.53791359,0.00013525,2]
[418968302,1774687832470,-16106.33404873,0.00013525,2]
[418968303,1774687832481,-47215.46337364,0.00013525,2]
[418968304,1774687832490,-1126.35159483,0.00013526,2]
[418968305,1774687832500,-10000.0,0.00013526,2]
[418968306,1774687832509,-500.0,0.00013526,2]
[418968307,1774687832519,-500.0,0.00013617,2]
[418968308,1774687832528,-307.23472182,0.00013617,2]
[418968309,1774687832538,-500.0,0.00013617,2]
[418968310,1774687832547,-500.0,0.00013617,2]
[418968311,1774687832556,-347.62129667,0.00013617,2]
[418968312,1774687832565,-54.53605899,0.00013617,2]
[418968313,1774687837815,-445.46394101,0.00013617,2]
[418968314,1774687837825,-137.74391238,0.00013617,2]
[418968315,1774687838173,-311.17691746,0.00013617,2]
[418968321,1774687840015,-51.07917016,0.00013617,2]
[418968322,1774687840025,-305.34392674,0.00013617,2]
[418968345,1774687843495,-426.98205987,0.00012896,2]
[418968346,1774687843638,-1425.43794013,0.00012896,2]
[418968347,1774687843647,-194.65607326,0.00013617,2]
[418968348,1774687843657,-500.0,0.00013617,2]
[418968349,1774687843666,-500.0,0.00013617,2]
[418968350,1774687843675,-500.0,0.00013617,2]
[418968351,1774687843685,-500.0,0.00013617,2]
[418968352,1774687843694,-500.0,0.00013617,2]
[418968353,1774687843703,-500.0,0.00013617,2]
[418968354,1774687843713,-500.0,0.00013617,2]
[418968355,1774687843722,-500.0,0.00013617,2]
[418968356,1774687843732,-500.91130871,0.00013617,2]
[418968357,1774687843741,-500.0,0.00013617,2]
[418968358,1774687843751,-357.56717434,0.00013617,2]
[418968359,1774687843766,-142.43282566,0.00013617,2]
[418968360,1774687843776,-360.09944397,0.00013617,2]
[418968361,1774687843790,-139.90055603,0.00013617,2]
[418968362,1774687843799,-500.0,0.00013617,2]
[418968363,1774687843808,-82.99494557,0.00013617,2]
[418968402,1774687846046,-417.00505443,0.00013617,2]
[418968403,1774687846055,-500.0,0.00013617,2]